Cogmind - Beta 14 @@@ ROGUE MODE // 2025.01.13 @ 15:38:53 Player: Vimes Result: Core destroyed Performance ------------- Evolutions (1) 500 Regions Visited (2) 400 Robots Destroyed (8) 40 Value Destroyed (221) 221 Prototype IDs (0) 0 Alien Tech Used (0) 0 Bonus (0) 0 TOTAL SCORE: 1161 Bonus ------- None Cogmind --------- Core Integrity 0/400 Matter 261/300 Energy 100/100 System Corruption 24% Temperature Cool (0) Movement Rolling (90) Location -9/Materials Parts ------- > --- POWER (1) -------- (None) > --- PROPULSION (4) --- Armored Wheel Armored Wheel > --- UTILITY (2) ------ (None) > --- WEAPON (2) ------- Spread Laser > --- INVENTORY (5) ---- ECM Suite Light Armor Plating EM Pulse Gun EM Pulse Gun Medium Laser Peak State ------------ > --- POWER ------------ Ion Engine > --- PROPULSION ------- Aluminum Leg Aluminum Leg Armored Wheel Armored Wheel > --- UTILITY ---------- Small Storage Unit High-capacity Battery > --- WEAPON ----------- Medium Laser Spread Laser > --- INVENTORY -------- Ion Engine Wheel Transport Network Coupler ECM Suite EM Pulse Gun EM Pulse Gun Assault Rifle Hammer [Rating: 12] Favorites ----------- Power Light Ion Engine Engine Light Ion Engine Propulsion Light Treads Treads Light Treads Leg Aluminum Leg Wheel Armored Wheel Utility Small Storage Unit Storage Small Storage Unit Weapon Medium Laser Energy Gun Medium Laser Ballistic Gun Assault Rifle Impact Weapon Hammer Slashing Weapon Mining Claw Build | -11 -10 -9 ------- Run | Yrd Mat Mat Slots Evolved 2 | . . 2 Power . | . . . Propulsion 2 | . . 2 Utility . | . . . Weapon . | . . . Parts Attached 20 | 6 2 12 Power 3 | 1 . 2 Engine 3 | 1 . 2 Core . | . . . Reactor . | . . . Propulsion 7 | 2 . 5 Treads 2 | 2 . . Leg 2 | . . 2 Wheel 3 | . . 3 Hover . | . . . Flight . | . . . Utility 5 | 1 2 2 Device . | . . . Storage 5 | 1 2 2 Processor . | . . . Hackware . | . . . Protection . | . . . Artifact . | . . . Weapon 5 | 2 . 3 Energy Gun 2 | 1 . 1 Energy Cannon . | . . . Ballistic Gun 1 | 1 . . Ballistic Cannon . | . . . Launcher . | . . . Special Weapon . | . . . Impact Weapon 1 | . . 1 Slashing Weapon 1 | . . 1 Piercing Weapon . | . . . Special Melee Weapon . | . . . Unidentified Prototypes . | . . . Parts Lost 10 | . 1 9 Power 3 | . 1 2 Propulsion 3 | . . 3 Utility 2 | . . 2 Weapon 2 | . . 2 Highest Loss Streak 9 | . 1 9 To Critical Strikes . | . . . Average Slot Usage (%) 96 | . 99 92 Engine 12 | . 13 10 Treads 20 | . 28 6 Leg 4 | . . 12 Wheel 7 | . . 21 Storage 24 | . 27 18 Energy Gun 15 | . 14 18 Ballistic Gun 9 | . 14 1 Peak Build Rating 12 | 6 7 12 Average Rating 7 | 4 6 10 On Entrance 4 | . 6 6 Naked Turns . | . . . Heaviest Build 94 | 12 92 94 Greatest Support 40 | 40 40 40 Greatest Overweight (x) 2 | . 2 2 Average Overweight (x) . | . . . Largest Inventory Capacity 25 | 8 25 25 Average Capacity 10 | 6 10 10 Most Carried 9 | 4 8 9 Average Carried 6 | 2 6 8 Final Capacity 25 | 8 25 5 Final Carried 8 | 3 8 5 Class Distribution -------------------- 100% | Mutant Dominant Class ---------------- Mutant | -10/Materials Mutant | -9/Materials Resources | -11 -10 -9 ----------- Run | Yrd Mat Mat Matter Collected 393 | 220 126 47 Remotely . | . . . Salvage Created 249 | . 202 47 Parts 14 | . 12 2 Haulers Intercepted . | . . . Recyclers Shooed . | . . . Parts Field Recycled . | . . . Retrieved Matter . | . . . Parts Self-Destructed . | . . . Prevented . | . . . Kills | -11 -10 -9 ------- Run | Yrd Mat Mat Combat Hostiles Destroyed 8 | . 7 1 Guns 8 | . 7 1 Classes Destroyed 3 | . 2 1 Swarmer 3 | . 3 . Grunt 4 | . 4 . Sentry 1 | . . 1 Best Kill Streak 3 | . 3 1 Combat Bots Only 3 | . 3 1 Max Kills in Single Turn 1 | . 1 1 Gunslinging . | . . . Exploded . | . . . Melee . | . . . Uniques/NPCs Destroyed . | . . . Combat | -11 -10 -9 -------- Run | Yrd Mat Mat Hostile Shots Fired 56 | . 54 2 Missed 16 | . 15 1 Damage Taken 1774 | . 380 1394 Core 509 | . 108 401 Absorbed by Shields . | . . . Core Remaining (%) 78 | 100 56 . Volleys Fired 29 | . 22 7 Largest 2 | . 2 2 Hottest 115 | . 70 115 Shots Fired 54 | . 44 10 Gun 54 | . 44 10 Cannon . | . . . Launcher . | . . . Special . | . . . Kinetic 22 | . 22 . Thermal 32 | . 22 10 Explosive . | . . . Electromagnetic . | . . . Robot Hit Streak 10 | . 10 7 Robot Miss Streak 4 | . 2 4 Penetration Max . | . . . Secondary Targets 1 | . 1 . Max Gunslinging Chain 1 | . 1 . Shots Hit Robots 32 | . 28 4 Core Hits 16 | . 12 4 Critical Kills . | . . . Critical Parts Destroyed . | . . . Critical Strikes 1 | . 1 . Burn 1 | . 1 . Melee Attacks 22 | . . 22 Impact 13 | . . 13 Slashing 9 | . . 9 Piercing . | . . . Sneak Attacks . | . . . Combat Hostiles . | . . . Follow-up Attacks . | . . . Damage Inflicted 437 | . 373 64 Guns 424 | . 373 51 Cannons . | . . . Explosions . | . . . Melee . | . . . Ramming 13 | . . 13 Kinetic 160 | . 160 . Thermal 264 | . 213 51 Explosive . | . . . Electromagnetic . | . . . Impact . | . . . Slashing . | . . . Piercing . | . . . Highest Corruption 22 | . . 22 Average Corruption 10 | . . 10 Corruption Purged . | . . . Corruption Blocked . | . . . Effects 2 | . . 2 Matter Fused 1 | . . 1 Heat Flow Errors 1 | . . 1 Overload Shots . | . . . Overflow Damage . | . . . Projectiles . | . . . Explosions . | . . . Melee . | . . . Knockbacks . | . . . Impact . | . . . Kinetic . | . . . Secondary . | . . . Self-Inflicted Damage 13 | . . 13 Shots . | . . . Rammed . | . . . Targets Rammed . | . . . Kicked . | . . . Crushed . | . . . Highest Temperature 191 | . 150 191 Average Temperature 47 | . 47 48 Received Heat Transfer 165 | . 138 27 Siege Activations . | . . . Robots Corrupted . | . . . Combat Hostiles . | . . . Parts Fried . | . . . Impact Corruptions . | . . . Robots Melted . | . . . Combat Hostiles . | . . . Parts Melted 1 | . 1 . Heat Transferred 790 | . 703 87 Parts Sabotaged . | . . . Parts Stolen . | . . . Parts Stripped . | . . . Power Chain Reactions . | . . . Alert | -11 -10 -9 ------- Run | Yrd Mat Mat Peak Influence 165 | . 165 94 Initial 18 | . . 18 Average 55 | . 59 65 Maximum Alert Level . | . . . Low Security (%) 100 | 100 100 100 Level 1 . | . . . Level 2 . | . . . Level 3 . | . . . Level 4 . | . . . Level 5 . | . . . High Security . | . . . Max Security . | . . . Squads Dispatched 2 | . 2 . Investigation 1 | . 1 . Extermination . | . . . Reinforcement 1 | . 1 . Assault . | . . . Garrison . | . . . Intercept . | . . . Searches Triggered . | . . . Construction Impeded . | . . . Haulers Reinforced . | . . . Active Scanning Responses . | . . . Cargo Convoy Interrupts . | . . . Stealth | -11 -10 -9 --------- Run | Yrd Mat Mat Distress Signals 2 | . 2 . Communications Jammed . | . . . Distress Signals . | . . . Times Spotted 18 | . 14 4 Peak Tracking Total 4 | . 4 1 Tactical Retreats 2 | . 2 . Traps | -11 -10 -9 ------- Run | Yrd Mat Mat Traps Triggered 1 | . 1 . Indirectly . | . . . Trap Hack Attempts . | . . . Triggered . | . . . Disarmed . | . . . Reprogrammed . | . . . Reused . | . . . Traps Extracted . | . . . Installed . | . . . Triggered . | . . . Machines | -11 -10 -9 ---------- Run | Yrd Mat Mat Machines Disabled 1 | . 1 . Max in Single Turn 1 | . 1 . Machines Repaired . | . . . Machines Dismantled . | . . . Machines Sabotaged . | . . . Overloaded Fab Kills . | . . . Hacking | -11 -10 -9 --------- Run | Yrd Mat Mat Machines Accessed . | . . . Terminals . | . . . Fabricators . | . . . Repair Stations . | . . . Recycling Units . | . . . Scanalyzers . | . . . Garrison Access . | . . . Total Hacks . | . . . Successful . | . . . Failed . | . . . Catastrophic . | . . . Database Lockouts . | . . . Manual . | . . . Terminals . | . . . Fabricators . | . . . Repair Stations . | . . . Recycling Units . | . . . Scanalyzers . | . . . Garrison Access . | . . . Terminal Hacks . | . . . Fabricator Hacks . | . . . Repair Station Hacks . | . . . Recycling Unit Hacks . | . . . Scanalyzer . | . . . Garrison Access Hacks . | . . . Unauthorized Hacks . | . . . Terminals . | . . . Fabricators . | . . . Repair Stations . | . . . Recycling Units . | . . . Scanalyzers . | . . . Garrison Access . | . . . Data Cores Recovered . | . . . Used . | . . . Hacking Detections . | . . . Full Trace Events . | . . . Feedback Events . | . . . Feedback Blocked . | . . . Robot Schematics Acquired . | . . . Robots Built . | . . . Authchips . | . . . Time . | . . . Total Robot Build Rating . | . . . Part Schematics Acquired . | . . . Parts Built . | . . . Authchips . | . . . Time . | . . . Total Part Build Rating . | . . . Parts Repaired . | . . . Time . | . . . Parts Recycled . | . . . Recycled Matter . | . . . Retrieved Matter . | . . . Retrieved Components . | . . . Parts Scanalyzed . | . . . Part Schematics Acquired . | . . . Parts Damaged . | . . . Bothacking | -11 -10 -9 ------------ Run | Yrd Mat Mat Used RIF Installer . | . . . Robots Hacked . | . . . Non-combat . | . . . Combat . | . . . Robot Hacks Applied . | . . . Relay Couplers Released . | . . . Fabnet Peak Effective % . | . . . Robots Rewired . | . . . Allies Hacked . | . . . Hacks Repelled . | . . . Allies | -11 -10 -9 -------- Run | Yrd Mat Mat Total Allies . | . . . Largest Group . | . . . Highest-Rated Group . | . . . Highest-Rated Ally . | . . . Total Orders . | . . . Ally Attacks . | . . . Total Damage . | . . . Kills . | . . . Allies Corrupted . | . . . Allies Melted . | . . . Intel | -11 -10 -9 ------- Run | Yrd Mat Mat Robot Analysis Total . | . . . Derelict Logs Recovered . | . . . Drone Launches . | . . . Drone Recoveries . | . . . Exploration | -11 -10 -9 ------------- Run | Yrd Mat Mat Turns Passed 989 | 96 565 328 Spaces Moved 516 | 60 248 208 Core 13 | 13 . . Treads 302 | 47 248 7 Legs 49 | . . 49 Wheels 152 | . . 152 Hover . | . . . Flight . | . . . Fastest Speed 50 | 50 160 86 Average Speed 143 | 136 179 102 Slowest Speed 320 | 160 320 320 Overloaded Moves . | . . . Propulsion Burnouts . | . . . Robots Hopped . | . . . Cave-ins Triggered 5 | . . 5 Exploration Rate (%) 18 | 4 35 16 Regions Visited 2 Branch Regions . Pre-discovered Areas . | . . . Known Exits Taken . | . . . Unknown Exits Taken 2 | 1 1 . Scrap Searched . | . . . Spaces Dug 17 | . . 17 Terrain Destroyed 17 | . . 17 Melee 17 | . . 17 Projectile . | . . . AOE . | . . . Terrain Rammed 4 | . . 4 Walls Destroyed . | . . . Machines Disabled . | . . . Actions | -11 -10 -9 --------- Run | Yrd Mat Mat Total 674 | 74 326 274 Wait 53 | . 46 7 Move 513 | 59 247 207 Hop . | . . . Pick Up 24 | 9 7 8 Fast Attach 3 | . 1 2 Attach 13 | 6 . 7 Detach 1 | . . 1 Swap 4 | . 1 3 Drop 8 | . 2 6 Fire 29 | . 22 7 Melee 22 | . . 22 Ram 3 | . . 3 Kick . | . . . Crush . | . . . Escape Stasis 1 | . . 1 Rewire . | . . . Trap . | . . . Miscellaneous . | . . . Route ------- -11/Scrapyard -10/Materials -9/Materials History --------- Turn | Location | Event 8 | -11/Scrapyard | Discovered new exit (range 16) 97 | -11/Scrapyard | Entered Materials 325 | -10/Materials | Build established: Mutant 611 | -10/Materials | Discovered new exit (range 16) 662 | -10/Materials | Entered another Materials area 662 | -9/Materials | Evolved 2 slots: Propulsion x2 948 | -9/Materials | Crushed by falling debris 970 | -9/Materials | Crushed by falling debris 970 | -9/Materials | System corruption reached 10% 973 | -9/Materials | Crushed by falling debris 973 | -9/Materials | Core integrity fell below 50% 987 | -9/Materials | Crushed by falling debris 987 | -9/Materials | Core integrity fell below 20% 988 | -9/Materials | Crushed by falling debris 990 | -9/Materials | Core destroyed Last Messages --------------- 00987_ System corrupted by crushing effect (+2). 00987_ Hammer destroyed. 00987_ System corrupted by crushing effect (+2). 00987_ Slammed into Wall. 00987_ Destabilizing: System corrupted (+1). 00987_ Destabilizing: System interference. 00987_ Spread Laser temporarily disabled. 00988_ The unstable cave ceiling collapses. 00988_ Crushed by falling debris. 00988_ Ion Engine destroyed. 00988_ System corrupted by crushing effect (+1). 00988_ Slammed into Wall. 00988_ Arm. Wheel broken. 00988_ Destabilizing: Short circuit. 00988_ Destabilizing: Core damaged (-12). 00989_ Slammed into Wall. 00989_ Destabilizing: Core damaged (-20). 00990_ Slammed into Wall. 00990_ Destabilizing: System corrupted (+2). 00990_ Destabilizing: Core damaged (-4). Map ----- +----------------------------------------------------+ | ?????????????????????????????????????????????????? | | ?????????????????????????????????????????????????? | | ?????????????????????????????????????????????????? | | ?????????????????????????????????????????????????? | | ?????????????????????????????????????????????????? | | ?????????????????????????????????????????????????? | | ?????????????????????????????????????????????????? | | ?????????????????????????????????????????????????? | | ?????????????????????????????????????????????????? | | ?????????????????????????????????????????????????? | | ?????????????????????????????????????????????????? | | ?????????????????????????????????????????????????? | | ?????????????????????????????????????????????????? | | ?????????????????????????????????????????????????? | | ?????????????????????????????????????????????????? | | ?????????????????????????????????????????????????? | | ?????????????????????????????????????????????????? | | ?????????????????????????????????????????????????? | | ?????????????????????????????????????????????????? | | ????????????????????? ?????????????????????????? | | ????????????????????? ????????????????????????? | | ????????????????????? ????????????????????????? | | ????????????????????# #????????????????????????? | | ????????????????????# #????????????????????????? | | ????????????????????# ################?????????? | | ????????????????????# #@# # # """ #?????????? | | ????????????????????# ########## "T" ##????????? | | ????????????????????# #????????# #????????? | | ????????????????????# #????????# ##?######?? | | ???????????########## #??####### #?##!!!!##? | | ??????????# # #??# # #?#! !#? | | ??????????# """ """ # #??# """ # #?# #? | | ??????????# """ """ # #??# """ # ### ## | | ??????????# """ """ + #??# """ # """ # | | ??????????# # #??# """ # """ # | | ??????????# [[[ !# #??# """ # """ # ######## | | ??????????# [[ # #??# # # #??# | | ??????????# [[ # ########+###+### #??# ! | | ??????????########### #??# | | ????????????????????########## #??# | | ?????????????????????????????########+## #??# | | ????????????????????????????????# # #??# "" | | ????????????????????????????????# """" # #### "" | | ????????????????????????????????# """" # + "" | | ????????????????????????????????# """" + #### | | ????????????????????????????????# ####??##### | | ????????????????????????????????#/ #?????????? | | ????????????????????????????????########?????????? | | ?????????????????????????????????????????????????? | | ?????????????????????????????????????????????????? | +----------------------------------------------------+ Best States ------------- Heat Dissipation 28 Energy Generation 10 Energy Capacity 500 Matter Stores 300 Matter Capacity 300 Sight Range 16 Terrain Scan Density 10 Evasion (%) 55 Recoil Reduction 2 Item Schematics ----------------- None Robot Schematics ------------------ None Fabricated ------------ Nothing Alien Tech Used ----------------- None Achievements -------------- Part-time Excavator Challenges ------------ None Game ------ Seed ShadePointGenerator Manual? 0 Play Time 00:20:32 Cumulative 10.6 hours Start 2024.12.25 @ 17:52:38 End 2025.01.13 @ 15:38:53 Sessions 2 Manual Loads 0 Difficulty Rogue Special Mode None Game No. 11 Rogue 11 Adventurer 0 Explorer 0 Win Type - Total 0 Types 0/0/0/0/0/0/0/0/0 Lore% 7 Gallery% 15 Achievement% 14 Wizard Run 0 Options --------- Layout 1 ASCII 0 Keyboard 0 Movement Mouse Keybinds 0 Fullscreen 1 Font 24/Smallcaps Map View 50x35 Zoom Use 0% Tactical HUD 1 Map Filters NONE Filters NONE Steam 1 RUN: b7b7d7b6-321a-4587-a361-eccd8ab998d4